[Event "Titled Tuesday Blitz August 23 Early 2022"]
[White "Nasuta, Grzegorz"]
[Black "Jones, Gawain C B"]
[WhiteFideId "1141686"]
[BlackFideId "409561"]
[WhiteElo "2354"]
[BlackElo "2657"]
[Result "0-1"]
[Round "03"]
[TimeControl "180+1"]
[Date "2022.08.23"]
[WhiteClock "0:00:05"]
[BlackClock "0:00:10"]

1. e4 {[%clk 0:03:00]}  e5 {[%clk 0:02:58]} 2. Nf3 {[%clk 0:03:01]}  Nc6 {[%clk 0:02:57]} 3. Bc4 {[%clk 0:03:00]}  Nf6 {[%clk 0:02:57]} 4. d3 {[%clk 0:03:01]}  Bc5 {[%clk 0:02:57]} 5. O-O {[%clk 0:03:00]}  d6 {[%clk 0:02:57]} 6. c3 {[%clk 0:02:59]}  a5 {[%clk 0:02:57]} 7. Nbd2 {[%clk 0:02:51]}  O-O {[%clk 0:02:54]} 8. h3 {[%clk 0:02:51]}  Ba7 {[%clk 0:02:46]} 9. Re1 {[%clk 0:02:48]}  Ne7 {[%clk 0:02:46]} 10. Nf1 {[%clk 0:02:47]}  Ng6 {[%clk 0:02:45]} 11. Ng3 {[%clk 0:02:47]}  c6 {[%clk 0:02:39]} 12. Bb3 {[%clk 0:02:44]}  Re8 {[%clk 0:02:36]} 13. d4 {[%clk 0:02:44]}  Be6 {[%clk 0:02:30]} 14. Bc2 {[%clk 0:02:43]}  h6 {[%clk 0:02:25]} 15. a4 {[%clk 0:02:33]}  Qc7 {[%clk 0:02:22]} 16. Be3 {[%clk 0:02:32]}  Rad8 {[%clk 0:02:12]} 17. Qc1 {[%clk 0:02:33]}  Qe7 {[%clk 0:01:43]} 18. Nf5 {[%clk 0:02:22]}  Qf8 {[%clk 0:01:20]} 19. dxe5 {[%clk 0:01:05]}  Bxe3 {[%clk 0:01:19]} 20. Qxe3 {[%clk 0:01:06]}  dxe5 {[%clk 0:01:14]} 21. Qb6 {[%clk 0:01:06]}  Nf4 {[%clk 0:01:01]} 22. Ng3 {[%clk 0:00:43]}  Qe7 {[%clk 0:00:42]} 23. Ne2 {[%clk 0:00:20]}  N6h5 {[%clk 0:00:33]} 24. Nxf4 {[%clk 0:00:18]}  Nxf4 {[%clk 0:00:32]} 25. Qe3 {[%clk 0:00:07]}  Qf6 {[%clk 0:00:28]} 26. Kh2 {[%clk 0:00:05]}  Qg6 {[%clk 0:00:18]} 27. g3 {[%clk 0:00:05]}  Nxh3 {[%clk 0:00:17]} 28. Nh4 {[%clk 0:00:04]}  Qh5 {[%clk 0:00:14]} 29. Kg2 {[%clk 0:00:05]}  Nf4+ {[%clk 0:00:14]} 30. gxf4 {[%clk 0:00:02]}  Qxh4 {[%clk 0:00:14]} 31. f5 {[%clk 0:00:03]}  Bc4 {[%clk 0:00:13]} 32. Rh1 {[%clk 0:00:03]}  Qg4+ {[%clk 0:00:12]} 33. Qg3 {[%clk 0:00:01]}  Qxg3+ {[%clk 0:00:12]} 34. Kxg3 {[%clk 0:00:02]}  Rd2 {[%clk 0:00:13]} 35. Rac1 {[%clk 0:00:03]}  Bd3 {[%clk 0:00:11]} 36. Bxd3 {[%clk 0:00:02]}  Rxd3+ {[%clk 0:00:12]} 37. Kg2 {[%clk 0:00:03]}  Rd2 {[%clk 0:00:12]} 38. Rb1 {[%clk 0:00:04]}  Red8 {[%clk 0:00:11]} 39. Rhe1 {[%clk 0:00:04]}  R8d7 {[%clk 0:00:09]} 40. Kf3 {[%clk 0:00:04]}  Kf8 {[%clk 0:00:08]} 41. Kg2 {[%clk 0:00:05]}  Ke7 {[%clk 0:00:08]} 42. b4 {[%clk 0:00:05]}  Rc2 {[%clk 0:00:05]} 43. bxa5 {[%clk 0:00:06]}  Rxc3 {[%clk 0:00:06]} 44. Rb2 {[%clk 0:00:06]}  Ra3 {[%clk 0:00:06]} 45. Reb1 {[%clk 0:00:06]}  Rxa4 {[%clk 0:00:06]} 46. Rxb7 {[%clk 0:00:06]}  Rxa5 {[%clk 0:00:06]} 47. Rxd7+ {[%clk 0:00:06]}  Kxd7 {[%clk 0:00:07]} 48. Rb7+ {[%clk 0:00:07]}  Ke8 {[%clk 0:00:07]} 49. Rc7 {[%clk 0:00:07]}  Rc5 {[%clk 0:00:07]} 50. Kg3 {[%clk 0:00:07]}  Rc4 {[%clk 0:00:07]} 51. f3 {[%clk 0:00:08]}  Kf8 {[%clk 0:00:07]} 52. Kg4 {[%clk 0:00:08]}  Rc1 {[%clk 0:00:07]} 53. Kg3 {[%clk 0:00:08]}  Ke8 {[%clk 0:00:06]} 54. Kg4 {[%clk 0:00:09]}  Rg1+ {[%clk 0:00:06]} 55. Kh3 {[%clk 0:00:09]}  Rf1 {[%clk 0:00:06]} 56. Kg2 {[%clk 0:00:09]}  Rc1 {[%clk 0:00:06]} 57. Kg3 {[%clk 0:00:10]}  c5 {[%clk 0:00:07]} 58. Kg2 {[%clk 0:00:10]}  c4 {[%clk 0:00:07]} 59. Kg3 {[%clk 0:00:10]}  c3 {[%clk 0:00:07]} 60. Kg2 {[%clk 0:00:10]}  c2 {[%clk 0:00:08]} 61. Kh2 {[%clk 0:00:10]}  Kd8 {[%clk 0:00:08]} 62. Rc3 {[%clk 0:00:09]}  Ke7 {[%clk 0:00:08]} 63. Kg2 {[%clk 0:00:10]}  Kf6 {[%clk 0:00:08]} 64. Kh2 {[%clk 0:00:10]}  Kg5 {[%clk 0:00:09]} 65. Kg2 {[%clk 0:00:10]}  Kf4 {[%clk 0:00:09]} 66. Kh2 {[%clk 0:00:10]}  h5 {[%clk 0:00:09]} 67. Kg2 {[%clk 0:00:10]}  h4 {[%clk 0:00:09]} 68. Kh2 {[%clk 0:00:11]}  h3 {[%clk 0:00:09]} 69. f6 {[%clk 0:00:06]}  gxf6 {[%clk 0:00:08]} 70. Rc6 {[%clk 0:00:03]}  f5 {[%clk 0:00:07]} 71. exf5 {[%clk 0:00:03]}  Kxf3 {[%clk 0:00:06]} 72. f6 {[%clk 0:00:04]}  Re1 {[%clk 0:00:05]} 73. Rxc2 {[%clk 0:00:04]}  Re2+ {[%clk 0:00:05]} 74. Rxe2 {[%clk 0:00:04]}  Kxe2 {[%clk 0:00:06]} 75. Kxh3 {[%clk 0:00:03]}  Kf3 {[%clk 0:00:06]} 76. Kh4 {[%clk 0:00:04]}  e4 {[%clk 0:00:07]} 77. Kg5 {[%clk 0:00:05]}  e3 {[%clk 0:00:07]} 78. Kh6 {[%clk 0:00:05]}  e2 {[%clk 0:00:08]} 79. Kg7 {[%clk 0:00:05]}  e1=Q {[%clk 0:00:09]} 80. Kxf7 {[%clk 0:00:06]}  Qe5 {[%clk 0:00:09]} 81. Kg6 {[%clk 0:00:06]}  Qe6 {[%clk 0:00:09]} 82. Kg7 {[%clk 0:00:06]}  Qg4+ {[%clk 0:00:09]} 83. Kh7 {[%clk 0:00:06]}  Qh5+ {[%clk 0:00:09]} 84. Kg7 {[%clk 0:00:07]}  Qg5+ {[%clk 0:00:10]} 85. Kf7 {[%clk 0:00:07]}  Ke4 {[%clk 0:00:10]} 86. Ke6 {[%clk 0:00:07]}  Qe5+ {[%clk 0:00:10]} 87. Kf7 {[%clk 0:00:07]}  Kf5 {[%clk 0:00:10]} 88. Kg8 {[%clk 0:00:05]}  Kxf6 {[%clk 0:00:10]} 89. Kh7 {[%clk 0:00:05]} 0-1


[Site "https://www.chess.com"]

[Event "Titled Tuesday Blitz August 23 Early 2022"]
[White "Pap, Gyula"]
[Black "Williams, Simon K"]
[WhiteFideId "725323"]
[BlackFideId "404454"]
[WhiteElo "2553"]
[BlackElo "2468"]
[Result "0-1"]
[Round "03"]
[TimeControl "180+1"]
[Date "2022.08.23"]
[WhiteClock "0:00:47"]
[BlackClock "0:01:28"]

1. d4 {[%clk 0:03:00]}  e6 {[%clk 0:02:55]} 2. c4 {[%clk 0:03:00]}  f5 {[%clk 0:02:54]} 3. a3 {[%clk 0:02:59]}  Nf6 {[%clk 0:02:54]} 4. Nc3 {[%clk 0:03:00]}  g6 {[%clk 0:02:51]} 5. h4 {[%clk 0:02:52]}  Bg7 {[%clk 0:02:45]} 6. Bg5 {[%clk 0:02:52]}  h6 {[%clk 0:02:45]} 7. Bf4 {[%clk 0:02:52]}  d6 {[%clk 0:02:43]} 8. Qd2 {[%clk 0:02:52]}  Qe7 {[%clk 0:02:41]} 9. e3 {[%clk 0:02:40]}  Nc6 {[%clk 0:02:40]} 10. O-O-O {[%clk 0:02:24]}  e5 {[%clk 0:02:29]} 11. Bg3 {[%clk 0:02:22]}  O-O {[%clk 0:02:16]} 12. dxe5 {[%clk 0:02:13]}  dxe5 {[%clk 0:02:16]} 13. Nd5 {[%clk 0:02:13]}  Nxd5 {[%clk 0:02:15]} 14. cxd5 {[%clk 0:02:13]}  Nd8 {[%clk 0:02:13]} 15. d6 {[%clk 0:02:05]}  cxd6 {[%clk 0:02:13]} 16. Qxd6 {[%clk 0:02:05]}  Qxd6 {[%clk 0:02:08]} 17. Rxd6 {[%clk 0:02:06]}  f4 {[%clk 0:02:08]} 18. Bc4+ {[%clk 0:01:55]}  Kh7 {[%clk 0:02:08]} 19. exf4 {[%clk 0:01:55]}  exf4 {[%clk 0:02:08]} 20. Bh2 {[%clk 0:01:54]}  Nf7 {[%clk 0:02:01]} 21. Rd2 {[%clk 0:01:50]}  Ne5 {[%clk 0:02:00]} 22. Be2 {[%clk 0:01:41]}  Be6 {[%clk 0:01:50]} 23. Nf3 {[%clk 0:01:37]}  Rac8+ {[%clk 0:01:48]} 24. Kb1 {[%clk 0:01:34]}  Ng4 {[%clk 0:01:43]} 25. Bd3 {[%clk 0:01:21]}  Rcd8 {[%clk 0:01:38]} 26. h5 {[%clk 0:00:58]}  Rxd3 {[%clk 0:01:34]} 27. hxg6+ {[%clk 0:00:59]}  Kg8 {[%clk 0:01:29]} 28. Rxd3 {[%clk 0:00:56]}  Bf5 {[%clk 0:01:29]} 29. Kc2 {[%clk 0:00:47]}  Nxf2 {[%clk 0:01:28]} 0-1


[Site "https://www.chess.com"]

[Event "Titled Tuesday Blitz August 23 Early 2022"]
[White "Papasimakopoulos, Alexandros"]
[Black "Kamsky, Gata"]
[WhiteFideId "4244125"]
[BlackFideId "2000024"]
[WhiteElo "2357"]
[BlackElo "2666"]
[Result "0-1"]
[Round "03"]
[TimeControl "180+1"]
[Date "2022.08.23"]
[WhiteClock "0:00:29"]
[BlackClock "0:00:06"]

1. d4 {[%clk 0:03:00]}  f5 {[%clk 0:02:56]} 2. e4 {[%clk 0:03:00]}  fxe4 {[%clk 0:02:51]} 3. Nc3 {[%clk 0:03:00]}  Nf6 {[%clk 0:02:50]} 4. Bg5 {[%clk 0:03:01]}  c6 {[%clk 0:02:37]} 5. f3 {[%clk 0:02:59]}  e3 {[%clk 0:02:27]} 6. Bxe3 {[%clk 0:02:58]}  Qb6 {[%clk 0:02:21]} 7. Qd2 {[%clk 0:02:55]}  Qxb2 {[%clk 0:02:15]} 8. Rb1 {[%clk 0:02:55]}  Qa3 {[%clk 0:02:15]} 9. Bc4 {[%clk 0:02:54]}  d5 {[%clk 0:02:13]} 10. Bd3 {[%clk 0:02:54]}  g6 {[%clk 0:01:46]} 11. Nge2 {[%clk 0:02:53]}  Bg7 {[%clk 0:01:45]} 12. h4 {[%clk 0:02:45]}  Nbd7 {[%clk 0:01:34]} 13. Bh6 {[%clk 0:02:31]}  Bxh6 {[%clk 0:01:28]} 14. Qxh6 {[%clk 0:02:32]}  e5 {[%clk 0:01:24]} 15. Bxg6+ {[%clk 0:02:26]}  Kd8 {[%clk 0:01:11]} 16. dxe5 {[%clk 0:02:21]}  Nxe5 {[%clk 0:01:06]} 17. Bf5 {[%clk 0:02:11]}  Qe7 {[%clk 0:00:56]} 18. Bxc8 {[%clk 0:02:05]}  Rxc8 {[%clk 0:00:53]} 19. Rxb7 {[%clk 0:02:01]}  Rc7 {[%clk 0:00:38]} 20. Rxc7 {[%clk 0:01:56]}  Kxc7 {[%clk 0:00:38]} 21. Qe3 {[%clk 0:01:50]}  Kb7 {[%clk 0:00:21]} 22. O-O {[%clk 0:01:48]}  Re8 {[%clk 0:00:19]} 23. Nd4 {[%clk 0:01:42]}  Ka8 {[%clk 0:00:17]} 24. f4 {[%clk 0:01:24]}  Neg4 {[%clk 0:00:17]} 25. Qxe7 {[%clk 0:01:24]}  Rxe7 {[%clk 0:00:17]} 26. Rb1 {[%clk 0:01:10]}  c5 {[%clk 0:00:15]} 27. Nc6 {[%clk 0:01:09]}  Rb7 {[%clk 0:00:15]} 28. Rxb7 {[%clk 0:01:07]}  Kxb7 {[%clk 0:00:15]} 29. Ne5 {[%clk 0:01:08]}  d4 {[%clk 0:00:13]} 30. Na4 {[%clk 0:00:55]}  Ne3 {[%clk 0:00:10]} 31. Nxc5+ {[%clk 0:00:54]}  Kb6 {[%clk 0:00:07]} 32. Nb3 {[%clk 0:00:50]}  Nxc2 {[%clk 0:00:07]} 33. Nf3 {[%clk 0:00:50]}  d3 {[%clk 0:00:07]} 34. Kf2 {[%clk 0:00:49]}  Ne4+ {[%clk 0:00:06]} 35. Kf1 {[%clk 0:00:48]}  Ng3+ {[%clk 0:00:06]} 36. Kg1 {[%clk 0:00:46]}  Ne2+ {[%clk 0:00:05]} 37. Kf2 {[%clk 0:00:46]}  Nxf4 {[%clk 0:00:06]} 38. g3 {[%clk 0:00:44]}  Nd5 {[%clk 0:00:06]} 39. Ne5 {[%clk 0:00:42]}  Ndb4 {[%clk 0:00:06]} 40. a4 {[%clk 0:00:38]}  Kc7 {[%clk 0:00:05]} 41. g4 {[%clk 0:00:32]}  Kd6 {[%clk 0:00:05]} 42. Nc4+ {[%clk 0:00:32]}  Kd5 {[%clk 0:00:05]} 43. Ne3+ {[%clk 0:00:32]}  Ke4 {[%clk 0:00:05]} 44. Nxc2 {[%clk 0:00:30]}  dxc2 {[%clk 0:00:06]} 45. Nc1 {[%clk 0:00:30]}  Nd3+ {[%clk 0:00:06]} 46. Ke2 {[%clk 0:00:29]}  Nxc1+ {[%clk 0:00:06]} 47. Kd2 {[%clk 0:00:30]}  Nb3+ {[%clk 0:00:06]} 48. Kxc2 {[%clk 0:00:30]}  Nc5 {[%clk 0:00:07]} 49. a5 {[%clk 0:00:30]}  Nb7 {[%clk 0:00:06]} 50. g5 {[%clk 0:00:27]}  Nxa5 {[%clk 0:00:05]} 51. h5 {[%clk 0:00:27]}  Kf5 {[%clk 0:00:06]} 52. g6 {[%clk 0:00:28]}  hxg6 {[%clk 0:00:06]} 53. h6 {[%clk 0:00:29]}  Kf6 {[%clk 0:00:06]} 0-1


[Site "https://www.chess.com"]

[Event "Titled Tuesday Blitz August 23 Early 2022"]
[White "Paravyan, David"]
[Black "Vakhlamov, Igor L."]
[WhiteFideId "4194985"]
[BlackFideId "24126748"]
[WhiteElo "2569"]
[BlackElo "2401"]
[Result "1/2-1/2"]
[Round "03"]
[TimeControl "180+1"]
[Date "2022.08.23"]
[WhiteClock "0:00:05"]
[BlackClock "0:00:19"]

1. e4 {[%clk 0:03:00]}  c5 {[%clk 0:02:59]} 2. Nf3 {[%clk 0:02:58]}  Nc6 {[%clk 0:03:00]} 3. Nc3 {[%clk 0:02:58]}  g6 {[%clk 0:02:59]} 4. d4 {[%clk 0:02:58]}  cxd4 {[%clk 0:03:00]} 5. Nxd4 {[%clk 0:02:59]}  Bg7 {[%clk 0:03:01]} 6. Be3 {[%clk 0:02:59]}  Nf6 {[%clk 0:03:01]} 7. Bc4 {[%clk 0:03:00]}  O-O {[%clk 0:03:02]} 8. Bb3 {[%clk 0:02:59]}  a5 {[%clk 0:03:02]} 9. O-O {[%clk 0:02:57]}  Nxd4 {[%clk 0:03:02]} 10. Bxd4 {[%clk 0:02:57]}  d6 {[%clk 0:03:03]} 11. Re1 {[%clk 0:02:53]}  Bd7 {[%clk 0:03:02]} 12. a4 {[%clk 0:02:53]}  Bc6 {[%clk 0:03:02]} 13. Nd5 {[%clk 0:02:52]}  e6 {[%clk 0:03:00]} 14. Nxf6+ {[%clk 0:02:51]}  Bxf6 {[%clk 0:03:00]} 15. c3 {[%clk 0:02:51]}  Bxd4 {[%clk 0:02:54]} 16. Qxd4 {[%clk 0:02:49]}  Qe7 {[%clk 0:02:46]} 17. Rad1 {[%clk 0:02:47]}  Rfd8 {[%clk 0:02:43]} 18. h3 {[%clk 0:02:35]}  b5 {[%clk 0:02:43]} 19. axb5 {[%clk 0:02:32]}  Bxb5 {[%clk 0:02:44]} 20. Bc2 {[%clk 0:02:15]}  a4 {[%clk 0:02:28]} 21. Ra1 {[%clk 0:02:14]}  Qb7 {[%clk 0:02:27]} 22. Reb1 {[%clk 0:01:54]}  Bc6 {[%clk 0:02:06]} 23. f3 {[%clk 0:01:33]}  Qb5 {[%clk 0:01:56]} 24. Bd3 {[%clk 0:01:17]}  Qc5 {[%clk 0:01:36]} 25. Qxc5 {[%clk 0:01:04]}  dxc5 {[%clk 0:01:37]} 26. Rd1 {[%clk 0:01:01]}  Rab8 {[%clk 0:01:37]} 27. Bc2 {[%clk 0:00:49]}  Rxd1+ {[%clk 0:01:33]} 28. Bxd1 {[%clk 0:00:50]}  Rxb2 {[%clk 0:01:22]} 29. Bxa4 {[%clk 0:00:39]}  Bb5 {[%clk 0:00:54]} 30. Bxb5 {[%clk 0:00:34]}  Rxb5 {[%clk 0:00:55]} 31. Ra8+ {[%clk 0:00:29]}  Kg7 {[%clk 0:00:55]} 32. Rc8 {[%clk 0:00:29]}  g5 {[%clk 0:00:54]} 33. Kf2 {[%clk 0:00:28]}  h5 {[%clk 0:00:54]} 34. g3 {[%clk 0:00:22]}  Kf6 {[%clk 0:00:43]} 35. h4 {[%clk 0:00:12]}  gxh4 {[%clk 0:00:39]} 36. gxh4 {[%clk 0:00:13]}  Rb2+ {[%clk 0:00:36]} 37. Kg3 {[%clk 0:00:08]}  Rb5 {[%clk 0:00:36]} 38. Kf4 {[%clk 0:00:08]}  Ra5 {[%clk 0:00:33]} 39. Rh8 {[%clk 0:00:04]}  Ra3 {[%clk 0:00:30]} 40. Rh6+ {[%clk 0:00:02]}  Kg7 {[%clk 0:00:28]} 41. Rxh5 {[%clk 0:00:03]}  Rxc3 {[%clk 0:00:28]} 42. Rg5+ {[%clk 0:00:04]}  Kh6 {[%clk 0:00:24]} 43. Rg8 {[%clk 0:00:04]}  Kh7 {[%clk 0:00:23]} 44. Rc8 {[%clk 0:00:04]}  Kg6 {[%clk 0:00:22]} 45. Rc7 {[%clk 0:00:04]}  f6 {[%clk 0:00:21]} 46. Kg4 {[%clk 0:00:02]}  f5+ {[%clk 0:00:19]} 47. Kf4 {[%clk 0:00:01]}  fxe4 {[%clk 0:00:18]} 48. fxe4 {[%clk 0:00:02]}  Rh3 {[%clk 0:00:17]} 49. Rxc5 {[%clk 0:00:02]}  Rxh4+ {[%clk 0:00:17]} 50. Ke3 {[%clk 0:00:02]}  Kf6 {[%clk 0:00:17]} 51. Kd4 {[%clk 0:00:02]}  Rh1 {[%clk 0:00:17]} 52. Rc3 {[%clk 0:00:03]}  Rd1+ {[%clk 0:00:18]} 53. Ke3 {[%clk 0:00:03]}  Re1+ {[%clk 0:00:18]} 54. Kf3 {[%clk 0:00:04]}  Rf1+ {[%clk 0:00:18]} 55. Ke3 {[%clk 0:00:04]}  Re1+ {[%clk 0:00:19]} 56. Kf4 {[%clk 0:00:05]}  Rf1+ {[%clk 0:00:19]} 57. Ke3 {[%clk 0:00:05]}  Re1+ {[%clk 0:00:19]} 1/2-1/2


[Site "https://www.chess.com"]

[Event "Titled Tuesday Blitz August 23 Early 2022"]
[White "Pranesh M"]
[Black "Aldokhin, Ivan"]
[WhiteFideId "35028600"]
[BlackFideId "24115720"]
[WhiteElo "1926"]
[BlackElo "2246"]
[Result "0-1"]
[Round "03"]
[TimeControl "180+1"]
[Date "2022.08.23"]
[WhiteClock "0:02:13"]
[BlackClock "0:00:11"]

1. e4 {[%clk 0:02:54]}  c5 {[%clk 0:02:59]} 2. Nf3 {[%clk 0:02:54]}  e6 {[%clk 0:03:00]} 3. d4 {[%clk 0:02:54]}  cxd4 {[%clk 0:03:00]} 4. Nxd4 {[%clk 0:02:55]}  a6 {[%clk 0:03:01]} 5. c4 {[%clk 0:02:55]}  Qc7 {[%clk 0:03:01]} 6. Nc3 {[%clk 0:02:56]}  Nf6 {[%clk 0:03:02]} 7. Bd3 {[%clk 0:02:56]}  d6 {[%clk 0:03:02]} 8. O-O {[%clk 0:02:57]}  g6 {[%clk 0:03:03]} 9. Kh1 {[%clk 0:02:58]}  Bg7 {[%clk 0:03:03]} 10. Be3 {[%clk 0:02:58]}  O-O {[%clk 0:03:02]} 11. Rc1 {[%clk 0:02:59]}  Nbd7 {[%clk 0:03:00]} 12. f4 {[%clk 0:02:59]}  b6 {[%clk 0:02:59]} 13. f5 {[%clk 0:02:58]}  Ne5 {[%clk 0:02:57]} 14. b3 {[%clk 0:02:56]}  Neg4 {[%clk 0:02:37]} 15. Bg5 {[%clk 0:02:55]}  d5 {[%clk 0:01:56]} 16. Bf4 {[%clk 0:02:52]}  e5 {[%clk 0:01:10]} 17. Nxd5 {[%clk 0:02:49]}  Qc5 {[%clk 0:01:10]} 18. Nc6 {[%clk 0:02:33]}  exf4 {[%clk 0:00:52]} 19. Qe2 {[%clk 0:02:27]}  Re8 {[%clk 0:00:46]} 20. b4 {[%clk 0:02:26]}  Qxc6 {[%clk 0:00:44]} 21. c5 {[%clk 0:02:25]}  bxc5 {[%clk 0:00:32]} 22. Rxc5 {[%clk 0:02:23]}  Qd6 {[%clk 0:00:29]} 23. Nc7 {[%clk 0:02:23]}  Bb7 {[%clk 0:00:23]} 24. Nxa8 {[%clk 0:02:20]}  Bxa8 {[%clk 0:00:23]} 25. fxg6 {[%clk 0:02:18]}  hxg6 {[%clk 0:00:21]} 26. Rd1 {[%clk 0:02:18]}  Qd4 {[%clk 0:00:18]} 27. Rc2 {[%clk 0:02:16]}  Ne3 {[%clk 0:00:17]} 28. Bb5 {[%clk 0:02:12]}  Nxd1 {[%clk 0:00:12]} 29. Bxe8 {[%clk 0:02:13]}  Nxe4 {[%clk 0:00:11]} 30. h4 {[%clk 0:02:13]}  Ng3+ {[%clk 0:00:11]} 0-1


[Site "https://www.chess.com"]

[Event "Titled Tuesday Blitz August 23 Early 2022"]
[White "Salinas Herrera, Pablo"]
[Black "Matinian, Nikita"]
[WhiteFideId "3407128"]
[BlackFideId "24129100"]
[WhiteElo "2542"]
[BlackElo "2422"]
[Result "1-0"]
[Round "03"]
[TimeControl "180+1"]
[Date "2022.08.23"]
[WhiteClock "0:00:14"]
[BlackClock "0:00:01"]

1. e4 {[%clk 0:03:00]}  c5 {[%clk 0:02:58]} 2. Nf3 {[%clk 0:03:00]}  Nc6 {[%clk 0:02:59]} 3. Bb5 {[%clk 0:03:00]}  g6 {[%clk 0:02:58]} 4. Bxc6 {[%clk 0:03:00]}  bxc6 {[%clk 0:02:57]} 5. O-O {[%clk 0:03:00]}  Rb8 {[%clk 0:02:54]} 6. c3 {[%clk 0:02:56]}  Bg7 {[%clk 0:02:52]} 7. Re1 {[%clk 0:02:55]}  Nh6 {[%clk 0:02:51]} 8. d4 {[%clk 0:02:54]}  cxd4 {[%clk 0:02:49]} 9. cxd4 {[%clk 0:02:55]}  d6 {[%clk 0:02:48]} 10. h3 {[%clk 0:02:54]}  O-O {[%clk 0:02:48]} 11. Nc3 {[%clk 0:02:54]}  Qa5 {[%clk 0:02:48]} 12. Qc2 {[%clk 0:02:53]}  Qh5 {[%clk 0:02:46]} 13. Qd3 {[%clk 0:02:29]}  Bd7 {[%clk 0:02:10]} 14. b3 {[%clk 0:02:27]}  Kh8 {[%clk 0:02:01]} 15. Bf4 {[%clk 0:02:25]}  f6 {[%clk 0:01:54]} 16. Rad1 {[%clk 0:02:21]}  g5 {[%clk 0:01:53]} 17. Bg3 {[%clk 0:02:19]}  g4 {[%clk 0:01:52]} 18. hxg4 {[%clk 0:02:19]}  Bxg4 {[%clk 0:01:51]} 19. Ne2 {[%clk 0:02:00]}  e5 {[%clk 0:01:20]} 20. Nh2 {[%clk 0:01:49]}  Bxe2 {[%clk 0:01:12]} 21. Qxe2 {[%clk 0:01:46]}  Qxe2 {[%clk 0:01:10]} 22. Rxe2 {[%clk 0:01:47]}  f5 {[%clk 0:01:10]} 23. dxe5 {[%clk 0:01:30]}  f4 {[%clk 0:01:04]} 24. Bh4 {[%clk 0:01:30]}  dxe5 {[%clk 0:00:56]} 25. Rd6 {[%clk 0:01:23]}  c5 {[%clk 0:00:51]} 26. Rc2 {[%clk 0:01:20]}  Rfc8 {[%clk 0:00:48]} 27. Nf3 {[%clk 0:01:11]}  Ng4 {[%clk 0:00:46]} 28. Ng5 {[%clk 0:01:06]}  c4 {[%clk 0:00:44]} 29. g3 {[%clk 0:00:44]}  h6 {[%clk 0:00:34]} 30. Nf3 {[%clk 0:00:38]}  cxb3 {[%clk 0:00:25]} 31. Rxc8+ {[%clk 0:00:39]}  Rxc8 {[%clk 0:00:25]} 32. axb3 {[%clk 0:00:40]}  Rc1+ {[%clk 0:00:21]} 33. Kg2 {[%clk 0:00:40]}  Rc2 {[%clk 0:00:21]} 34. gxf4 {[%clk 0:00:40]}  exf4 {[%clk 0:00:22]} 35. Rd8+ {[%clk 0:00:38]}  Kh7 {[%clk 0:00:21]} 36. Rd7 {[%clk 0:00:39]}  Kg6 {[%clk 0:00:19]} 37. Rxa7 {[%clk 0:00:37]}  Bf6 {[%clk 0:00:17]} 38. Ra6 {[%clk 0:00:36]}  Kg7 {[%clk 0:00:12]} 39. Bxf6+ {[%clk 0:00:33]}  Nxf6 {[%clk 0:00:13]} 40. Nd4 {[%clk 0:00:33]}  Rc3 {[%clk 0:00:05]} 41. Ne6+ {[%clk 0:00:33]}  Kg8 {[%clk 0:00:04]} 42. e5 {[%clk 0:00:19]}  Ng4 {[%clk 0:00:03]} 43. Nxf4 {[%clk 0:00:18]}  Nxe5 {[%clk 0:00:04]} 44. b4 {[%clk 0:00:17]}  Rc4 {[%clk 0:00:04]} 45. Nd5 {[%clk 0:00:17]}  Rd4 {[%clk 0:00:04]} 46. Rd6 {[%clk 0:00:16]}  Kg7 {[%clk 0:00:02]} 47. b5 {[%clk 0:00:16]}  Nd3 {[%clk 0:00:01]} 48. Rd7+ {[%clk 0:00:14]}  Kg8 {[%clk 0:00:01]} 49. Nf6+ {[%clk 0:00:13]}  Kh8 {[%clk 0:00:01]} 50. Rxd4 {[%clk 0:00:14]} 1-0


[Site "https://www.chess.com"]

[Event "Titled Tuesday Blitz August 23 Early 2022"]
[White "Solon, Nathan"]
[Black "Ibrahimli, Murad"]
[WhiteFideId "2017229"]
[BlackFideId "13410229"]
[WhiteElo "2641"]
[BlackElo "2109"]
[Result "0-1"]
[Round "03"]
[TimeControl "180+1"]
[Date "2022.08.23"]
[WhiteClock "0:00:03"]
[BlackClock "0:00:07"]

1. e4 {[%clk 0:03:00]}  g6 {[%clk 0:02:59]} 2. d4 {[%clk 0:02:57]}  Bg7 {[%clk 0:02:58]} 3. Nc3 {[%clk 0:02:57]}  d6 {[%clk 0:02:58]} 4. Be3 {[%clk 0:02:57]}  a6 {[%clk 0:02:58]} 5. Nf3 {[%clk 0:02:55]}  b5 {[%clk 0:02:58]} 6. Bd3 {[%clk 0:02:55]}  Bb7 {[%clk 0:02:58]} 7. a4 {[%clk 0:02:55]}  b4 {[%clk 0:02:58]} 8. Ne2 {[%clk 0:02:56]}  Nd7 {[%clk 0:02:56]} 9. O-O {[%clk 0:02:53]}  Ngf6 {[%clk 0:02:37]} 10. Ng3 {[%clk 0:02:53]}  O-O {[%clk 0:02:35]} 11. h3 {[%clk 0:02:52]}  c5 {[%clk 0:02:32]} 12. c3 {[%clk 0:02:53]}  a5 {[%clk 0:02:30]} 13. Qe2 {[%clk 0:02:50]}  Qc7 {[%clk 0:02:17]} 14. Rac1 {[%clk 0:02:45]}  bxc3 {[%clk 0:02:14]} 15. bxc3 {[%clk 0:02:45]}  Bc6 {[%clk 0:02:13]} 16. Qa2 {[%clk 0:02:10]}  Nb6 {[%clk 0:02:05]} 17. Bc2 {[%clk 0:01:49]}  Nfd7 {[%clk 0:01:50]} 18. d5 {[%clk 0:01:42]}  Bb7 {[%clk 0:01:50]} 19. c4 {[%clk 0:01:42]}  Nb8 {[%clk 0:01:43]} 20. Bb3 {[%clk 0:01:20]}  Na6 {[%clk 0:01:42]} 21. Qd2 {[%clk 0:01:20]}  Nd7 {[%clk 0:01:39]} 22. Bh6 {[%clk 0:01:18]}  f6 {[%clk 0:01:22]} 23. Bxg7 {[%clk 0:01:07]}  Kxg7 {[%clk 0:01:23]} 24. Nh4 {[%clk 0:01:04]}  Rab8 {[%clk 0:01:13]} 25. Bc2 {[%clk 0:00:56]}  Nb4 {[%clk 0:01:08]} 26. Bb1 {[%clk 0:00:56]}  Ba6 {[%clk 0:01:08]} 27. f4 {[%clk 0:00:56]}  Nb6 {[%clk 0:01:07]} 28. Qe2 {[%clk 0:00:50]}  Nxa4 {[%clk 0:01:03]} 29. e5 {[%clk 0:00:45]}  dxe5 {[%clk 0:01:03]} 30. f5 {[%clk 0:00:46]}  g5 {[%clk 0:01:01]} 31. Nh5+ {[%clk 0:00:27]}  Kg8 {[%clk 0:00:54]} 32. Ng6 {[%clk 0:00:25]}  Nxd5 {[%clk 0:00:54]} 33. Qf3 {[%clk 0:00:17]}  Nb4 {[%clk 0:00:19]} 34. Ng3 {[%clk 0:00:15]}  Bb7 {[%clk 0:00:15]} 35. Qh5 {[%clk 0:00:16]}  Rf7 {[%clk 0:00:15]} 36. Ne4 {[%clk 0:00:14]}  Bxe4 {[%clk 0:00:13]} 37. Bxe4 {[%clk 0:00:15]}  Nb6 {[%clk 0:00:14]} 38. Rfd1 {[%clk 0:00:12]}  Nc6 {[%clk 0:00:09]} 39. Rb1 {[%clk 0:00:09]}  Nd4 {[%clk 0:00:09]} 40. Rxb6 {[%clk 0:00:06]}  Qxb6 {[%clk 0:00:05]} 41. Bd5 {[%clk 0:00:06]}  e6 {[%clk 0:00:06]} 42. fxe6 {[%clk 0:00:03]}  Nxe6 {[%clk 0:00:07]} 0-1


[Site "https://www.chess.com"]